bitfinex-derivatives/quotes_BTCF0:USTF0_20240829
["timestamp","ask_amount","ask_price","bid_price","bid_amount"]
[1724913524087,0.3608,59789.0,59788.0,0.083607]
[1724913524295,0.53990835,59789.0,59788.0,0.083607]
[1724913524794,0.17910835,59789.0,59788.0,0.735407]
[1724913525296,0.00025101,59791.0,59790.0,0.083605]
[1724913525714,0.17694395,59791.0,59790.0,0.083605]
[1724913526100,0.17694395,59791.0,59782.0,0.01215168]
[1724913526101,0.53774395,59791.0,59766.0,0.3608]
[1724913526304,0.082623,59777.0,59766.0,0.6508]
[1724913526595,0.3608,59775.0,59773.0,0.083628]
[1724913526998,0.1902916,59774.0,59773.0,0.083628]
[1724913527699,0.1902916,59774.0,59768.0,0.00025101]
[1724913527894,0.3608,59769.0,59768.0,0.00025101]
[1724913528092,0.3598,59769.0,59768.0,0.00025101]
[1724913528291,0.53848243,59769.0,59768.0,0.00025101]
[1724913528697,0.53948243,59769.0,59768.0,0.00025101]
[1724913529102,0.17868243,59769.0,59768.0,0.01254869]
[1724913529404,0.18400717,59770.0,59768.0,0.00025101]
[1724913529609,0.002,59769.0,59768.0,0.00025101]
[1724913529806,0.18600717,59769.0,59768.0,0.00025101]
[1724913530106,0.009,59769.0,59768.0,0.00125101]
[1724913530401,0.19335745,59769.0,59768.0,0.00125101]
[1724913530710,0.54715745,59769.0,59768.0,0.00125101]
[1724913531298,0.54515745,59769.0,59768.0,0.00125101]
[1724913531501,0.083638,59766.0,59765.0,0.01201496]
[1724913531702,0.083641,59764.0,59758.0,0.083649]
[1724913531897,0.3608,59760.0,59758.0,0.083649]
[1724913532303,0.18519842,59759.0,59758.0,0.083649]
[1724913533101,0.18419842,59759.0,59758.0,0.090649]
[1724913533606,0.18419842,59759.0,59758.0,0.095649]
[1724913534501,0.18419842,59759.0,59758.0,0.088649]
[1724913534809,0.18419842,59759.0,59758.0,0.095649]
[1724913539912,0.18419842,59759.0,59758.0,1.281338]
[1724913540304,0.18419842,59759.0,59758.0,1.642138]
[1724913541913,0.17466077,59759.0,59758.0,1.725787]
[1724913542103,0.1588,59776.0,59775.0,0.083626]
[1724913542303,0.1588,59776.0,59775.0,0.373626]
[1724913542505,0.18347751,59776.0,59775.0,0.373626]
[1724913542899,0.1911809,59780.0,59775.0,0.29]
[1724913543099,0.1591,59785.0,59781.0,0.083617]
[1724913543304,0.00025101,59783.0,59781.0,0.083617]
[1724913543603,0.00025101,59783.0,59782.0,0.083616]
[1724913544006,0.1744595,59783.0,59782.0,0.083616]
[1724913545404,0.1764595,59783.0,59782.0,0.084616]
[1724913546312,0.1904595,59783.0,59782.0,0.084616]
[1724913546513,0.17170591,59783.0,59782.0,0.168232]
[1724913546704,0.17170591,59783.0,59782.0,0.084616]
[1724913546908,0.15770591,59783.0,59782.0,0.084616]
[1724913547101,0.17170591,59783.0,59782.0,0.085616]
[1724913547405,0.16970591,59783.0,59782.0,0.084616]
[1724913547614,0.17170591,59783.0,59782.0,0.085616]
[1724913547819,0.17170591,59783.0,59782.0,0.169232]
[1724913549210,0.17170591,59783.0,59782.0,0.18114007]
[1724913550005,0.17170591,59783.0,59782.0,1.28294007]
[1724913550607,0.15770591,59783.0,59782.0,1.28194007]
[1724913550808,0.28754081,59792.0,59791.0,0.083603]
[1724913551208,0.46727373,59792.0,59791.0,0.083603]
[1724913552011,0.46727373,59792.0,59791.0,0.084603]
[1724913552012,0.46927373,59792.0,59791.0,0.084603]
[1724913552916,0.48127373,59792.0,59791.0,0.002]
[1724913553414,1.06663573,59792.0,59791.0,0.002]
[1724913554316,0.083603,59791.0,59790.0,0.01189594]
[1724913554616,0.083603,59791.0,59786.0,0.00025101]
[1724913554617,0.083609,59787.0,59786.0,0.00025101]
[1724913554807,0.29,59786.0,59777.0,0.083622]
[1724913555010,0.3608,59779.0,59771.0,0.3608]
[1724913555205,0.3608,59779.0,59777.0,0.083623]
[1724913555206,0.3255,59778.0,59777.0,0.083623]
[1724913555424,0.35062503,59778.0,59777.0,0.083623]
[1724913555618,0.083623,59777.0,59773.0,0.083628]
[1724913555813,0.3608,59774.0,59773.0,0.083628]
[1724913556123,0.53960254,59774.0,59773.0,0.083628]
[1724913557112,0.53860254,59774.0,59773.0,0.083628]
[1724913557311,0.55060254,59774.0,59773.0,0.083628]
[1724913558222,0.55960254,59774.0,59773.0,0.084628]
[1724913559805,0.55960254,59774.0,59773.0,0.001]
[1724913560011,1.06148254,59774.0,59773.0,0.001]
[1724913560414,1.14510954,59774.0,59773.0,0.001]
[1724913561315,1.14510954,59774.0,59763.0,0.083641]
[1724913561316,0.083629,59773.0,59763.0,0.083641]
[1724913561520,0.444441,59764.0,59763.0,0.083641]
[1724913561817,0.62584759,59764.0,59763.0,0.083641]
[1724913563514,0.62584759,59764.0,59763.0,0.084641]
[1724913564224,0.62584759,59764.0,59763.0,0.09647947]
[1724913566423,0.54220659,59764.0,59763.0,0.09647947]
[1724913576225,0.54220659,59764.0,59763.0,0.09547947]
[1724913576429,0.18940659,59764.0,59763.0,0.09647947]
[1724913576820,0.20040659,59764.0,59763.0,0.09647947]
[1724913577034,0.19240659,59764.0,59763.0,0.09547947]
[1724913577231,0.19140659,59764.0,59763.0,0.09647947]
[1724913577432,0.20340659,59764.0,59763.0,0.09647947]
[1724913577830,0.20340659,59764.0,59755.0,0.083653]
[1724913577831,0.54220659,59764.0,59746.0,0.3608]
[1724913578039,0.3598,59757.0,59741.0,0.3608]
[1724913578327,0.3608,59750.0,59742.0,0.4779]
[1724913578542,0.54387243,59756.0,59752.0,0.083657]
[1724913578730,0.3608,59756.0,59753.0,0.083656]
[1724913579035,0.26284091,59755.0,59749.0,0.08391201]
[1724913579235,0.3608,59750.0,59749.0,0.08391201]
[1724913579738,0.53998691,59750.0,59749.0,0.08391201]
[1724913579925,0.53998691,59750.0,59749.0,0.00025101]
[1724913580731,0.63364791,59750.0,59749.0,0.00025101]
[1724913580935,0.80104791,59750.0,59749.0,0.00025101]
[1724913581128,0.79104791,59750.0,59749.0,0.00025101]
[1724913581435,0.80804791,59750.0,59749.0,0.00125101]
[1724913582027,1.31012791,59750.0,59749.0,0.00125101]
[1724913582230,0.083671,59743.0,59739.0,0.083676]
[1724913582528,0.54359102,59742.0,59739.0,0.083676]
[1724913583535,0.54259102,59742.0,59739.0,0.08421374]
[1724913584337,0.54459102,59742.0,59739.0,0.08421374]
[1724913585239,0.08368,59736.0,59735.0,0.00025101]
[1724913585434,0.44448,59736.0,59735.0,0.01538232]
[1724913585624,0.083682,59735.0,59714.0,0.08371]
[1724913585827,0.083696,59725.0,59708.0,0.3608]
[1724913586030,0.083696,59725.0,59718.0,0.083705]
[1724913586237,0.19024253,59724.0,59719.0,0.083703]
[1724913586434,0.3608,59720.0,59719.0,0.083703]
[1724913586738,0.55204253,59720.0,59714.0,0.00025101]
[1724913587133,0.55204253,59720.0,59716.0,0.083708]
[1724913587931,0.56104253,59720.0,59719.0,0.001]
[1724913589651,0.55904253,59720.0,59716.0,0.09921052]
[1724913589840,0.55904253,59720.0,59716.0,0.01550252]
[1724913590037,0.083707,59717.0,59716.0,0.01550252]
[1724913590342,0.27142769,59717.0,59716.0,0.01450252]
[1724913590532,0.27042769,59717.0,59714.0,0.00025101]
[1724913590842,0.083708,59716.0,59714.0,0.01494668]
[1724913591036,0.083708,59716.0,59714.0,0.00025101]
[1724913591242,0.19417668,59715.0,59714.0,0.00025101]
[1724913591445,0.27788668,59715.0,59714.0,0.00025101]
[1724913591738,0.27688668,59715.0,59714.0,0.00025101]
[1724913592044,0.25835653,59715.0,59714.0,0.00025101]
[1724913592738,0.17464653,59715.0,59714.0,0.08396201]
[1724913592940,0.17464653,59715.0,59714.0,0.37396201]
[1724913593145,0.009,59717.0,59716.0,0.083708]
[1724913593344,0.3608,59729.0,59724.0,0.083697]
[1724913593644,0.3608,59729.0,59715.0,0.3608]
[1724913593840,0.18988951,59718.0,59717.0,0.083706]
[1724913594138,0.18640287,59723.0,59722.0,0.083699]
[1724913594533,0.18640287,59724.0,59722.0,0.083699]
[1724913594736,0.00025101,59725.0,59722.0,0.083699]
[1724913595136,0.18812529,59724.0,59722.0,0.083699]
[1724913596538,0.20212529,59724.0,59722.0,0.084699]
[1724913596747,0.20212529,59724.0,59722.0,0.09957269]
[1724913597143,0.20212529,59724.0,59723.0,0.083698]
[1724913598444,0.20212529,59724.0,59723.0,0.084698]
[1724913600242,0.28582229,59724.0,59723.0,0.001]
[1724913600751,1.06324529,59724.0,59723.0,0.001]
[1724913601145,0.64462229,59724.0,59723.0,0.001]
[1724913601447,0.083701,59721.0,59717.0,0.083706]
[1724913601648,0.3608,59719.0,59717.0,0.083706]
[1724913602053,0.1905379,59718.0,59717.0,0.083706]
[1724913602841,0.1905379,59719.0,59717.0,0.083706]
[1724913603045,0.083704,59720.0,59717.0,0.083706]
[1724913603250,0.011,59724.0,59715.0,0.3608]
[1724913603251,0.094697,59724.0,59715.0,0.3608]
[1724913603443,0.18856404,59719.0,59718.0,0.083705]
[1724913603654,0.18956404,59721.0,59720.0,0.083703]
[1724913603949,0.014,59724.0,59721.0,0.083701]
[1724913604338,0.01,59720.0,59717.0,0.001]
[1724913604540,0.01,59720.0,59718.0,0.083704]
[1724913604742,0.01,59720.0,59719.0,0.083704]
[1724913605146,0.19078661,59720.0,59719.0,0.083704]
[1724913605852,0.19078661,59720.0,59717.0,0.001]
[1724913605853,0.63528961,59720.0,59717.0,0.001]
[1724913606244,0.62428961,59720.0,59716.0,0.083708]
[1724913607051,0.55058661,59720.0,59717.0,0.084706]
[1724913607653,0.63428961,59720.0,59717.0,0.084706]
[1724913607854,0.62428961,59720.0,59717.0,0.083706]
[1724913608051,0.63528961,59720.0,59717.0,0.083706]
[1724913609554,0.083705,59719.0,59716.0,0.001]
[1724913609758,0.247305,59719.0,59717.0,0.001]
[1724913609953,0.18159985,59718.0,59717.0,0.001]
[1724913610350,0.26530485,59718.0,59717.0,0.001]
[1724913610752,0.26530485,59718.0,59714.0,0.0152117]
[1724913610953,0.083707,59717.0,59716.0,0.001]
[1724913611346,0.26770533,59717.0,59716.0,0.001]
[1724913612553,0.26770533,59717.0,59716.0,0.084708]
[1724913612860,0.26670533,59717.0,59716.0,0.083708]
[1724913613261,0.18399833,59717.0,59716.0,0.083708]
[1724913613452,0.18399833,59717.0,59716.0,0.528216]
[1724913613649,0.18399833,59717.0,59716.0,1.630576]
[1724913613857,0.18399833,59717.0,59716.0,1.631576]
[1724913613858,0.19499833,59717.0,59716.0,1.631576]
[1724913614054,0.011,59717.0,59716.0,1.631576]
[1724913614350,0.19329085,59717.0,59716.0,1.031576]
[1724913614549,0.19329085,59717.0,59716.0,0.529216]
[1724913616648,0.19329085,59717.0,59716.0,0.168416]
[1724913616851,0.19329085,59717.0,59716.0,0.529216]
[1724913618651,0.19329085,59717.0,59716.0,0.084708]
[1724913619168,0.19329085,59717.0,59716.0,0.445508]
[1724913619664,0.19329085,59717.0,59716.0,0.084708]
[1724913620263,0.55409085,59717.0,59716.0,0.084708]
[1724913620955,0.00092,59726.0,59724.0,0.083697]
[1724913621155,0.01502357,59735.0,59724.0,0.734497]
[1724913621456,0.01502357,59735.0,59734.0,0.083683]
[1724913621657,0.3608,59736.0,59734.0,0.083683]
[1724913621855,0.17453278,59735.0,59734.0,0.083683]
[1724913622253,0.17453278,59735.0,59734.0,0.585923]
[1724913622465,0.00025101,59740.0,59738.0,0.083677]
[1724913622764,0.00025101,59740.0,59733.0,0.3608]
[1724913622765,0.18767606,59739.0,59734.0,0.083683]
[1724913623062,0.35467606,59739.0,59735.0,0.083681]
[1724913623555,0.3608,59736.0,59734.0,0.001]
[1724913623752,0.3382,59735.0,59734.0,0.001]
[1724913623958,0.60873196,59735.0,59734.0,0.001]
[1724913625966,0.60873196,59735.0,59730.0,0.083689]
[1724913626167,0.3608,59731.0,59730.0,0.083689]
[1724913626571,0.5416576,59731.0,59730.0,0.083689]
[1724913626959,0.1808576,59731.0,59730.0,0.083689]
[1724913627464,0.17479645,59734.0,59732.0,0.083686]
[1724913627662,0.006,59735.0,59732.0,0.083686]
[1724913627860,0.3608,59733.0,59732.0,0.083686]
[1724913628270,0.54577757,59733.0,59732.0,0.083686]
[1724913628979,0.54577757,59733.0,59729.0,0.00025101]
[1724913629270,0.083686,59732.0,59729.0,0.00025101]
[1724913629469,0.083686,59732.0,59730.0,0.001]
[1724913629673,0.19291341,59731.0,59730.0,0.001]
[1724913630264,0.1916294,59732.0,59729.0,0.08494001]
[1724913630466,0.3608,59733.0,59729.0,0.08494001]
[1724913630973,0.1916294,59732.0,59729.0,0.08394001]
[1724913631167,0.1916294,59732.0,59730.0,0.001]
[1724913631966,0.1916294,59732.0,59731.0,0.528174]
[1724913632368,0.1916294,59732.0,59731.0,0.850174]
[1724913632569,0.18292006,59739.0,59738.0,0.083676]
[1724913633164,0.18292006,59739.0,59731.0,0.6828]
[1724913633165,0.00025101,59740.0,59739.0,0.083676]
[1724913633561,0.18581352,59740.0,59739.0,0.083676]
[1724913634562,0.19181352,59740.0,59739.0,0.084676]
[1724913635076,0.19181352,59740.0,59739.0,0.09967575]
[1724913638974,0.19181352,59740.0,59739.0,0.01599975]
[1724913641776,0.19181352,59740.0,59739.0,0.001]
[1724913642080,0.27548852,59740.0,59739.0,0.001]
[1724913642477,0.083682,59735.0,59731.0,0.083686]
[1724913642680,0.3608,59732.0,59731.0,0.083686]
[1724913643076,0.083689,59730.0,59729.0,0.00025101]
[1724913643479,0.25954521,59730.0,59729.0,0.00025101]
[1724913645383,0.25854521,59730.0,59729.0,0.00025101]
[1724913645583,0.17585621,59730.0,59729.0,0.00025101]
[1724913645809,0.17485621,59730.0,59729.0,1.63071101]
[1724913646091,0.18155278,59731.0,59729.0,0.86333101]
[1724913646280,0.18155278,59731.0,59730.0,0.083689]
[1724913646479,0.18155278,59731.0,59730.0,0.585929]
[1724913646777,0.3608,59737.0,59736.0,0.08368]
[1724913647176,0.53899482,59737.0,59736.0,0.08368]
[1724913648283,0.17819482,59737.0,59736.0,0.44448]
[1724913648684,0.3608,59744.0,59739.0,0.083676]
[1724913649083,0.3608,59744.0,59739.0,0.585876]
[1724913649283,0.19276793,59740.0,59739.0,0.083676]
[1724913650788,0.19276793,59740.0,59739.0,0.09840588]
[1724913651185,0.19276793,59740.0,59739.0,0.09940588]
[1724913651390,0.19976793,59740.0,59739.0,0.09940588]
[1724913654091,0.11201093,59740.0,59739.0,1.36895788]
[1724913654287,0.3257,59762.0,59748.0,0.083663]
[1724913654487,0.4956,59763.0,59753.0,0.3608]
[1724913654697,0.18291198,59757.0,59753.0,0.3608]
[1724913654995,0.18291198,59757.0,59756.0,0.083652]
[1724913655188,0.00025101,59762.0,59758.0,0.083648]
[1724913655385,0.00025101,59762.0,59759.0,0.083648]
[1724913655594,0.17739828,59760.0,59759.0,0.083648]
[1724913655794,0.00025101,59762.0,59759.0,0.083648]
[1724913655795,0.17739828,59761.0,59759.0,0.083648]
[1724913655990,0.00025101,59762.0,59759.0,0.083648]
[1724913656394,0.18855641,59761.0,59759.0,0.083648]
[1724913656999,0.18855641,59761.0,59759.0,0.3608]
[1724913657190,0.18855641,59761.0,59759.0,0.3618]
[1724913657388,0.18855641,59761.0,59760.0,0.083647]
[1724913658794,0.36145641,59761.0,59760.0,0.083647]
[1724913659195,0.52915641,59761.0,59760.0,0.083647]
[1724913659594,0.52915641,59761.0,59751.0,0.00025101]
[1724913659790,0.253447,59760.0,59755.0,0.083653]
[1724913660193,0.17517359,59759.0,59755.0,0.083653]
[1724913661096,0.17517359,59759.0,59756.0,0.083651]
[1724913661487,0.3608,59757.0,59751.0,0.01530441]
[1724913661687,0.083654,59755.0,59751.0,0.01530441]
[1724913662089,0.18699954,59754.0,59751.0,0.01530441]
[1724913662294,0.27065554,59754.0,59751.0,0.01530441]
[1724913662495,0.444458,59752.0,59751.0,0.00025101]
[1724913662995,0.61986751,59752.0,59751.0,0.00025101]
[1724913664295,0.62186751,59752.0,59751.0,0.00125101]
[1724913664690,0.083664,59748.0,59745.0,0.01490938]
[1724913664893,0.3608,59746.0,59744.0,0.083668]
[1724913665195,0.17872464,59745.0,59744.0,0.083668]
[1724913665796,0.17872464,59745.0,59733.0,0.1617]
[1724913665797,0.17872464,59745.0,59740.0,0.083674]
[1724913666001,0.3598,59741.0,59740.0,0.083674]
[1724913666301,0.3598,59741.0,59739.0,0.00025101]
[1724913666302,0.083675,59740.0,59739.0,0.00025101]
[1724913666791,0.26237051,59740.0,59739.0,0.00025101]
[1724913666993,0.26137051,59740.0,59739.0,0.00025101]
[1724913669007,0.26637051,59740.0,59739.0,0.00125101]
[1724913670895,0.26737051,59740.0,59739.0,0.00125101]
[1724913672207,0.98897051,59740.0,59739.0,0.00125101]
[1724913672403,0.98797051,59740.0,59739.0,0.00125101]
[1724913673114,0.083687,59731.0,59730.0,0.083687]
[1724913673403,0.082691,59728.0,59727.0,0.083693]
[1724913673911,0.27227257,59728.0,59727.0,0.083693]
[1724913675207,0.27227257,59728.0,59727.0,0.09825292]
[1724913675512,0.27127257,59728.0,59727.0,0.09825292]
[1724913675716,0.18958157,59728.0,59723.0,0.083698]
[1724913676100,0.17683412,59729.0,59723.0,0.083698]
[1724913676401,0.090691,59728.0,59727.0,0.001]
[1724913676808,0.27786058,59728.0,59727.0,0.001]
[1724913677008,0.083696,59725.0,59723.0,0.083698]
[1724913677205,0.3608,59724.0,59723.0,0.083698]
[1724913677410,0.55053075,59724.0,59723.0,0.083698]
[1724913679207,0.54953075,59724.0,59723.0,0.083698]
[1724913679709,0.54953075,59724.0,59722.0,0.01504713]
[1724913679710,0.5107535,59723.0,59698.0,0.36228]
[1724913679902,0.3257,59721.0,59712.0,0.3608]
[1724913680098,0.083701,59721.0,59704.0,0.1654]
[1724913680302,0.18982688,59720.0,59704.0,0.1654]
[1724913680712,0.00025101,59718.0,59706.0,0.00016736]
[1724913681007,0.18982688,59717.0,59706.0,0.00016736]
[1724913681208,0.083714,59712.0,59706.0,0.00016736]
[1724913681397,0.3608,59715.0,59706.0,0.08388936]
[1724913681398,0.083716,59711.0,59706.0,0.08388936]
[1724913681602,0.3608,59710.0,59706.0,0.08388936]
[1724913682114,0.18742287,59709.0,59706.0,0.00016736]
[1724913682807,0.083721,59707.0,59706.0,0.01416736]
[1724913683007,0.18742287,59709.0,59706.0,0.02898771]
[1724913683327,0.17562832,59707.0,59706.0,0.01416736]
[1724913683607,0.19007784,59709.0,59706.0,0.01416736]
[1724913683810,0.001,59710.0,59706.0,0.01416736]
[1724913684017,0.19007784,59709.0,59706.0,0.01416736]
[1724913684308,0.19007784,59709.0,59708.0,0.444519]
[1724913684710,0.19007784,59709.0,59708.0,1.546959]
[1724913684901,0.19107784,59709.0,59708.0,1.546959]
[1724913685103,0.001,59709.0,59708.0,1.546959]
[1724913685606,0.00025101,59718.0,59715.0,0.083709]
[1724913686006,0.17921331,59717.0,59715.0,0.083709]
[1724913686308,0.17921331,59717.0,59716.0,0.083708]
[1724913688515,0.18821331,59717.0,59716.0,0.084708]
[1724913692014,0.18821331,59717.0,59716.0,0.001]
[1724913692216,0.27192031,59717.0,59716.0,0.001]
[1724913692519,0.18821331,59717.0,59716.0,0.001]
[1724913692816,0.18821331,59717.0,59716.0,0.084708]
[1724913693022,0.18821331,59717.0,59716.0,0.258308]
[1724913693323,0.18821331,59717.0,59716.0,0.608808]
[1724913699717,0.18821331,59717.0,59716.0,0.432108]
[1724913700114,0.18821331,59717.0,59716.0,0.258308]
[1724913701022,0.31908292,59720.0,59717.0,0.083706]
[1724913701222,0.31908292,59720.0,59718.0,0.083705]
[1724913701517,0.18557002,59719.0,59718.0,0.083705]
[1724913702522,0.008,59720.0,59719.0,0.083704]
[1724913702931,0.19039335,59720.0,59719.0,0.083704]
[1724913703112,0.19039335,59720.0,59719.0,0.444504]
[1724913703319,0.19039335,59720.0,59719.0,0.083704]
[1724913704016,0.18239335,59720.0,59719.0,0.083704]
[1724913704334,0.1859352,59722.0,59719.0,0.083704]
[1724913704718,0.083699,59723.0,59719.0,0.083704]
[1724913704921,0.1859352,59722.0,59719.0,0.084704]
[1724913706024,0.1859352,59722.0,59719.0,0.083704]
[1724913706223,0.1859352,59722.0,59720.0,0.083702]
[1724913707922,0.1859352,59722.0,59720.0,0.084702]
[1724913708118,0.1859352,59722.0,59721.0,0.083701]
[1724913709435,0.17560474,59723.0,59721.0,0.084701]
[1724913709733,0.00025122,59724.0,59721.0,0.084701]
[1724913709930,0.17627671,59723.0,59721.0,0.084701]
[1724913710530,0.17627671,59723.0,59722.0,0.0837]
[1724913710730,0.15872756,59723.0,59722.0,0.66972]
[1724913712531,0.15872756,59723.0,59722.0,0.67072]
[1724913712832,0.15872756,59723.0,59722.0,1.03152]
[1724913713134,0.15872756,59723.0,59722.0,0.96300096]
[1724913714224,0.3428,59731.0,59730.0,0.083689]
[1724913714225,0.26230369,59731.0,59730.0,0.083689]
[1724913714633,0.45420147,59731.0,59730.0,0.083689]
[1724913715334,0.45420147,59731.0,59730.0,0.084689]
[1724913715530,0.36719778,59731.0,59730.0,0.084689]
[1724913715832,0.19189778,59731.0,59730.0,0.084689]
[1724913716728,0.19189778,59731.0,59730.0,0.09975141]
[1724913718636,0.19189778,59731.0,59730.0,0.46055141]
[1724913721639,0.19189778,59731.0,59730.0,0.09975141]
[1724913724130,0.19189778,59731.0,59730.0,0.09875141]
[1724913724332,0.19189778,59731.0,59730.0,0.09975141]
[1724913724539,1.37782478,59731.0,59725.0,0.00025122]
[1724913724833,0.444494,59726.0,59725.0,0.01239057]
[1724913725032,0.444494,59726.0,59725.0,0.00025122]
[1724913725233,0.62046115,59726.0,59725.0,0.00025122]
[1724913725824,0.62046115,59726.0,59725.0,0.00125122]
[1724913726234,1.12274115,59726.0,59725.0,0.00125122]
[1724913726630,1.29234115,59726.0,59725.0,0.00125122]
[1724913726839,1.45544115,59726.0,59725.0,0.00125122]
[1724913727430,1.45644115,59726.0,59725.0,0.00125122]
[1724913727834,2.14013515,59726.0,59725.0,1e-08]
[1724913728231,0.083706,59718.0,59716.0,0.083707]
[1724913728435,0.5349,59717.0,59716.0,0.083707]
[1724913728740,0.71831363,59717.0,59716.0,0.09591105]
[1724913728938,0.80202063,59717.0,59716.0,0.01220405]
[1724913729234,0.083708,59716.0,59712.0,0.083714]
[1724913729741,0.19395693,59715.0,59712.0,0.083714]
[1724913731032,0.19295693,59715.0,59712.0,0.083714]
[1724913731235,0.083713,59713.0,59711.0,0.01270364]
[1724913731636,0.19402124,59712.0,59711.0,0.01270364]
[1724913733436,0.27773524,59712.0,59711.0,0.01270364]
[1724913733739,0.63853524,59712.0,59711.0,0.01270364]
[1724913734442,0.64253524,59712.0,59711.0,0.01270364]
[1724913735440,0.72624924,59712.0,59711.0,0.01270364]
[1724913735633,1.66122124,59712.0,59700.0,0.08373]
[1724913735839,0.444529,59701.0,59700.0,0.083731]
[1724913736345,0.6279284,59701.0,59700.0,0.083731]
[1724913737543,0.6279284,59701.0,59700.0,0.090731]
[1724913738736,0.6279284,59701.0,59700.0,0.007]
[1724913739640,0.9179284,59701.0,59700.0,0.007]
[1724913740145,1.2664284,59701.0,59700.0,0.007]
[1724913741243,1.2664284,59701.0,59695.0,0.01260517]
[1724913741244,0.083736,59696.0,59695.0,0.01260517]
[1724913741548,0.444536,59696.0,59695.0,0.09634317]
[1724913741743,0.63206471,59696.0,59695.0,0.09634317]
[1724913742551,0.63206471,59696.0,59695.0,0.45714317]
[1724913742552,0.18752871,59696.0,59695.0,0.45714317]
[1724913742956,0.3608,59701.0,59700.0,0.083731]
[1724913743456,0.18438877,59701.0,59700.0,0.083731]
[1724913743651,0.18438877,59701.0,59700.0,0.444531]
[1724913743844,0.083716,59711.0,59705.0,0.083724]
[1724913744249,0.51033999,59706.0,59705.0,0.083724]
[1724913746247,0.51033999,59706.0,59702.0,0.083727]
[1724913746450,0.18463999,59706.0,59702.0,0.083727]
[1724913746646,0.3608,59703.0,59702.0,0.083727]
[1724913746853,0.18463999,59706.0,59702.0,0.083727]
[1724913747046,0.19037456,59703.0,59702.0,0.083727]
[1724913747551,0.19037456,59703.0,59702.0,0.09987287]
[1724913747756,0.00025122,59706.0,59703.0,0.083726]
[1724913747959,0.00025122,59706.0,59704.0,0.083725]
[1724913748460,0.18368229,59705.0,59704.0,0.083725]
[1724913749654,0.18368229,59705.0,59704.0,0.444525]
[1724913751649,0.18368229,59705.0,59704.0,0.446525]
[1724913751848,0.54448229,59705.0,59704.0,0.085725]
[1724913752044,0.54448229,59705.0,59704.0,0.002]
[1724913752045,0.91820629,59705.0,59704.0,0.002]
[1724913752249,1.00193029,59705.0,59704.0,0.002]
[1724913752451,1.17833029,59705.0,59704.0,0.002]
[1724913752762,0.083726,59703.0,59695.0,0.00016786]
[1724913753056,0.444536,59697.0,59695.0,0.00016786]
[1724913753653,0.27775724,59696.0,59695.0,0.00016786]
[1724913754456,0.27775724,59696.0,59683.0,0.4995]
[1724913754457,0.083743,59691.0,59683.0,0.4995]
[1724913754757,0.3608,59689.0,59687.0,0.083748]
[1724913755163,0.19265092,59688.0,59687.0,0.083748]
[1724913755757,0.18065092,59688.0,59687.0,0.083748]
[1724913756260,0.18065092,59688.0,59683.0,0.43662801]
[1724913756469,0.18065092,59688.0,59683.0,0.43506801]
[1724913756663,0.18165092,59688.0,59687.0,0.012]
[1724913757255,0.18065092,59688.0,59683.0,0.35131401]
[1724913757460,0.18165092,59688.0,59683.0,0.36431401]
[1724913758064,0.18165092,59688.0,59685.0,0.083751]
[1724913759558,0.18065092,59688.0,59683.0,0.01261401]
[1724913759756,0.18065092,59688.0,59674.0,0.1711]
[1724913759757,0.083751,59686.0,59685.0,0.004]
[1724913760169,0.26800941,59686.0,59685.0,0.004]
[1724913760362,0.35176041,59686.0,59685.0,0.004]
[1724913760660,0.35176041,59686.0,59674.0,0.083767]
[1724913760661,0.083762,59678.0,59674.0,0.083767]
[1724913761260,0.18069376,59677.0,59674.0,0.083767]
[1724913761465,0.083767,59674.0,59671.0,0.3608]
[1724913761662,0.083767,59674.0,59671.0,0.37324343]
[1724913761861,0.083767,59674.0,59671.0,0.45701443]
[1724913762067,0.19425052,59673.0,59671.0,0.45701443]
[1724913763756,0.19525052,59673.0,59671.0,0.37324343]
[1724913764361,0.27901952,59673.0,59671.0,0.37324343]
[1724913764561,0.3608,59672.0,59671.0,0.01244343]
[1724913764761,0.3608,59672.0,59669.0,0.083774]
[1724913764965,0.53585436,59672.0,59669.0,0.083774]
[1724913766362,0.53585436,59672.0,59669.0,0.09608665]
[1724913766563,0.53685436,59672.0,59669.0,0.09608665]
[1724913768168,0.53685436,59672.0,59671.0,0.083771]
[1724913768366,0.17605436,59672.0,59671.0,0.083771]
[1724913769765,0.10810582,59672.0,59671.0,1.547331]
[1724913769965,0.10810582,59672.0,59671.0,1.631102]
[1724913770273,0.10810582,59672.0,59671.0,1.714873]
[1724913770575,0.09316278,59672.0,59671.0,1.114873]
[1724913770764,0.09316278,59672.0,59671.0,1.031102]
[1724913771868,0.09316278,59672.0,59671.0,1.631102]
[1724913772269,0.09316278,59672.0,59671.0,1.031102]
[1724913772669,0.09316278,59672.0,59671.0,1.631102]
[1724913772869,0.09316278,59672.0,59671.0,1.031102]
[1724913774166,0.09316278,59672.0,59671.0,1.631102]
[1724913774370,0.09316278,59672.0,59671.0,1.031102]
[1724913774571,0.09316278,59672.0,59671.0,1.547331]
[1724913775172,0.09316278,59672.0,59671.0,0.947331]
[1724913776169,0.09316278,59672.0,59671.0,0.444571]
[1724913776366,0.09316278,59672.0,59671.0,0.947331]
[1724913776878,0.09316278,59672.0,59671.0,0.444571]
[1724913777773,0.09316278,59672.0,59671.0,0.947331]
[1724913777975,0.09316278,59672.0,59671.0,0.444571]
[1724913780670,0.09316278,59672.0,59671.0,0.947331]
[1724913781567,0.09316278,59672.0,59671.0,0.444571]
[1724913788174,0.38316278,59672.0,59671.0,0.3608]
[1724913788394,0.38316278,59672.0,59669.0,0.083774]
[1724913788570,0.1715,59671.0,59669.0,0.083774]
[1724913788972,0.18744415,59670.0,59669.0,0.083774]
[1724913795181,0.18844415,59670.0,59667.0,0.083776]
[1724913795387,0.36824415,59670.0,59668.0,0.083775]
[1724913795684,0.36824415,59670.0,59668.0,0.444575]
[1724913796480,0.36824415,59670.0,59669.0,0.083774]
[1724913797077,0.18844415,59670.0,59669.0,0.083774]
[1724913797287,0.18844415,59670.0,59669.0,0.586534]
[1724913798281,0.18844415,59670.0,59669.0,0.670308]
[1724913798981,0.18844415,59670.0,59669.0,1.270308]
[1724913799382,0.1738,59681.0,59680.0,0.083759]
[1724913799383,0.13006838,59681.0,59680.0,0.083759]
[1724913799787,0.31111993,59681.0,59680.0,0.083759]